[Event "Titled Tuesday Blitz April 11 Early 2023"]
[White "Larina, Maria"]
[Black "Krishnan, Varun"]
[WhiteFideId "24113182"]
[BlackFideId "5054508"]
[WhiteElo "1848"]
[BlackElo "2508"]
[Result "0-1"]
[Round "04"]
[TimeControl "180+2"]
[Date "2023.04.11"]
[WhiteClock "0:00:01"]
[BlackClock "0:00:07"]

1. e4 {[%clk 0:03:00]}  e5 {[%clk 0:02:57]} 2. Nf3 {[%clk 0:03:00]}  Nc6 {[%clk 0:02:56]} 3. Nc3 {[%clk 0:03:00]}  Nf6 {[%clk 0:02:55]} 4. Bb5 {[%clk 0:03:00]}  a6 {[%clk 0:02:54]} 5. Bxc6 {[%clk 0:02:59]}  dxc6 {[%clk 0:02:51]} 6. Nxe5 {[%clk 0:03:00]}  Bb4 {[%clk 0:02:50]} 7. d3 {[%clk 0:02:54]}  O-O {[%clk 0:02:50]} 8. O-O {[%clk 0:02:53]}  Re8 {[%clk 0:02:49]} 9. Nc4 {[%clk 0:02:42]}  Ng4 {[%clk 0:02:44]} 10. h3 {[%clk 0:02:38]}  Ne5 {[%clk 0:02:43]} 11. Nxe5 {[%clk 0:02:37]}  Rxe5 {[%clk 0:02:44]} 12. Bf4 {[%clk 0:02:37]}  Re8 {[%clk 0:02:43]} 13. Qf3 {[%clk 0:02:32]}  Be6 {[%clk 0:02:40]} 14. a3 {[%clk 0:02:27]}  Be7 {[%clk 0:02:37]} 15. Rfe1 {[%clk 0:02:20]}  Bg5 {[%clk 0:02:36]} 16. Rad1 {[%clk 0:02:13]}  Bxf4 {[%clk 0:02:30]} 17. Qxf4 {[%clk 0:02:14]}  c5 {[%clk 0:02:30]} 18. Re3 {[%clk 0:02:00]}  b5 {[%clk 0:02:23]} 19. Rg3 {[%clk 0:01:46]}  b4 {[%clk 0:02:21]} 20. Qh6 {[%clk 0:01:21]}  g6 {[%clk 0:02:18]} 21. Ne2 {[%clk 0:01:11]}  a5 {[%clk 0:02:03]} 22. Nf4 {[%clk 0:01:10]}  Qf6 {[%clk 0:02:01]} 23. Nh5 {[%clk 0:01:07]}  Qxb2 {[%clk 0:02:01]} 24. axb4 {[%clk 0:00:58]}  Qe5 {[%clk 0:01:13]} 25. bxc5 {[%clk 0:00:36]}  Kh8 {[%clk 0:01:09]} 26. Nf4 {[%clk 0:00:26]}  Qg7 {[%clk 0:01:02]} 27. Qh4 {[%clk 0:00:22]}  a4 {[%clk 0:00:41]} 28. Nh5 {[%clk 0:00:22]}  Qh6 {[%clk 0:00:42]} 29. Qf6+ {[%clk 0:00:20]}  Kg8 {[%clk 0:00:42]} 30. Rg5 {[%clk 0:00:18]}  a3 {[%clk 0:00:36]} 31. d4 {[%clk 0:00:17]}  a2 {[%clk 0:00:36]} 32. Ra1 {[%clk 0:00:18]}  Rf8 {[%clk 0:00:32]} 33. d5 {[%clk 0:00:17]}  Bd7 {[%clk 0:00:23]} 34. c6 {[%clk 0:00:17]}  Bc8 {[%clk 0:00:20]} 35. e5 {[%clk 0:00:15]}  Re8 {[%clk 0:00:16]} 36. d6 {[%clk 0:00:15]}  Be6 {[%clk 0:00:15]} 37. d7 {[%clk 0:00:14]}  Reb8 {[%clk 0:00:13]} 38. Kh2 {[%clk 0:00:14]}  Qf8 {[%clk 0:00:08]} 39. Nf4 {[%clk 0:00:12]}  Rb1 {[%clk 0:00:06]} 40. Rxa2 {[%clk 0:00:07]}  Bxa2 {[%clk 0:00:05]} 41. e6 {[%clk 0:00:05]}  Bxe6 {[%clk 0:00:05]} 42. Nxe6 {[%clk 0:00:05]}  fxe6 {[%clk 0:00:06]} 43. Qxe6+ {[%clk 0:00:06]}  Kg7 {[%clk 0:00:06]} 44. Qe5+ {[%clk 0:00:04]}  Qf6 {[%clk 0:00:06]} 45. Qxf6+ {[%clk 0:00:01]}  Kxf6 {[%clk 0:00:07]} 46. Rd5 {[%clk 0:00:01]}  Rbb8 {[%clk 0:00:07]} 47. d8=Q+ {[%clk 0:00:01]}  Rxd8 {[%clk 0:00:07]} 0-1


[Site "https://www.chess.com"]

[Event "Titled Tuesday Blitz April 11 Early 2023"]
[White "Baruch, Liam"]
[Black "Smith, Garrett L"]
[WhiteFideId "14322064"]
[BlackFideId "2024829"]
[WhiteElo "2163"]
[BlackElo "2313"]
[Result "0-1"]
[Round "04"]
[TimeControl "180+2"]
[Date "2023.04.11"]
[WhiteClock "0:00:04"]
[BlackClock "0:00:17"]

1. e4 {[%clk 0:03:00]}  c5 {[%clk 0:03:00]} 2. Nf3 {[%clk 0:02:59]}  Nc6 {[%clk 0:03:00]} 3. d4 {[%clk 0:02:59]}  cxd4 {[%clk 0:03:01]} 4. Nxd4 {[%clk 0:02:59]}  e5 {[%clk 0:03:01]} 5. Nb5 {[%clk 0:02:59]}  d6 {[%clk 0:03:01]} 6. N1c3 {[%clk 0:02:58]}  a6 {[%clk 0:03:01]} 7. Na3 {[%clk 0:02:59]}  Be7 {[%clk 0:03:00]} 8. Nc4 {[%clk 0:02:54]}  b5 {[%clk 0:02:58]} 9. Ne3 {[%clk 0:02:55]}  Nf6 {[%clk 0:02:59]} 10. Bd3 {[%clk 0:02:40]}  O-O {[%clk 0:02:56]} 11. O-O {[%clk 0:02:39]}  Be6 {[%clk 0:02:50]} 12. a3 {[%clk 0:02:23]}  Rb8 {[%clk 0:02:39]} 13. Qf3 {[%clk 0:02:19]}  Nd4 {[%clk 0:02:37]} 14. Qg3 {[%clk 0:02:11]}  Kh8 {[%clk 0:02:34]} 15. f3 {[%clk 0:02:04]}  Rg8 {[%clk 0:02:29]} 16. Ne2 {[%clk 0:01:50]}  Nxe2+ {[%clk 0:02:14]} 17. Bxe2 {[%clk 0:01:50]}  Qc7 {[%clk 0:02:02]} 18. Rd1 {[%clk 0:01:47]}  Rgd8 {[%clk 0:01:56]} 19. c3 {[%clk 0:01:09]}  d5 {[%clk 0:01:53]} 20. exd5 {[%clk 0:01:09]}  Nxd5 {[%clk 0:01:49]} 21. Nxd5 {[%clk 0:01:05]}  Rxd5 {[%clk 0:01:40]} 22. Be3 {[%clk 0:01:04]}  Rbd8 {[%clk 0:01:38]} 23. Qe1 {[%clk 0:00:51]}  f5 {[%clk 0:01:33]} 24. Bf2 {[%clk 0:00:45]}  e4 {[%clk 0:01:21]} 25. fxe4 {[%clk 0:00:42]}  fxe4 {[%clk 0:01:20]} 26. Rxd5 {[%clk 0:00:42]}  Rxd5 {[%clk 0:01:16]} 27. Rd1 {[%clk 0:00:33]}  Qe5 {[%clk 0:01:15]} 28. Bd4 {[%clk 0:00:31]}  Qg5 {[%clk 0:01:15]} 29. Bf1 {[%clk 0:00:19]}  Qf5 {[%clk 0:01:06]} 30. Qe3 {[%clk 0:00:18]}  h6 {[%clk 0:01:05]} 31. Qg3 {[%clk 0:00:17]}  Bg5 {[%clk 0:01:03]} 32. Qf2 {[%clk 0:00:09]}  Qxf2+ {[%clk 0:00:34]} 33. Kxf2 {[%clk 0:00:10]}  e3+ {[%clk 0:00:35]} 34. Ke1 {[%clk 0:00:10]}  Kh7 {[%clk 0:00:28]} 35. g3 {[%clk 0:00:10]}  Bg4 {[%clk 0:00:26]} 36. Bd3+ {[%clk 0:00:08]}  Kg8 {[%clk 0:00:26]} 37. Be4 {[%clk 0:00:08]}  Rd7 {[%clk 0:00:24]} 38. Rb1 {[%clk 0:00:05]}  Re7 {[%clk 0:00:23]} 39. Bd5+ {[%clk 0:00:04]}  Kh8 {[%clk 0:00:23]} 40. a4 {[%clk 0:00:04]}  e2 {[%clk 0:00:24]} 41. axb5 {[%clk 0:00:03]}  axb5 {[%clk 0:00:25]} 42. Ra1 {[%clk 0:00:03]}  Kh7 {[%clk 0:00:19]} 43. Ra8 {[%clk 0:00:03]}  Kg6 {[%clk 0:00:16]} 44. Bg2 {[%clk 0:00:03]}  h5 {[%clk 0:00:14]} 45. h4 {[%clk 0:00:04]}  Bf6 {[%clk 0:00:14]} 46. Ra6 {[%clk 0:00:04]}  Kf5 {[%clk 0:00:13]} 47. Bxf6 {[%clk 0:00:05]}  gxf6 {[%clk 0:00:14]} 48. Ra5 {[%clk 0:00:05]}  Rd7 {[%clk 0:00:14]} 49. Rxb5+ {[%clk 0:00:06]}  Ke6 {[%clk 0:00:15]} 50. Rb6+ {[%clk 0:00:05]}  Kf7 {[%clk 0:00:15]} 51. Kf2 {[%clk 0:00:03]}  Rd1 {[%clk 0:00:15]} 52. Rb7+ {[%clk 0:00:02]}  Ke6 {[%clk 0:00:15]} 53. Rb6+ {[%clk 0:00:02]}  Kf5 {[%clk 0:00:15]} 54. Rb5+ {[%clk 0:00:01]}  Kg6 {[%clk 0:00:16]} 55. Be4+ {[%clk 0:00:01]}  f5 {[%clk 0:00:15]} 56. Rb6+ {[%clk 0:00:02]}  Kf7 {[%clk 0:00:15]} 57. Rb7+ {[%clk 0:00:02]}  Kf8 {[%clk 0:00:16]} 58. Rb8+ {[%clk 0:00:02]}  Ke7 {[%clk 0:00:16]} 59. Rb7+ {[%clk 0:00:03]}  Kd8 {[%clk 0:00:16]} 60. Rb8+ {[%clk 0:00:03]}  Kc7 {[%clk 0:00:16]} 61. Rb7+ {[%clk 0:00:04]}  Kc8 {[%clk 0:00:17]} 62. Re7 {[%clk 0:00:03]}  e1=Q+ {[%clk 0:00:16]} 63. Kg2 {[%clk 0:00:03]}  Qh1+ {[%clk 0:00:17]} 64. Kf2 {[%clk 0:00:04]}  Qe1+ {[%clk 0:00:16]} 65. Kg2 {[%clk 0:00:04]}  Rd2# {[%clk 0:00:17]} 0-1


[Site "https://www.chess.com"]

[Event "Titled Tuesday Blitz April 11 Early 2023"]
[White "dDobravcan"]
[Black "Ovezdurdyyeva, Jemal"]
[BlackFideId "14001888"]
[WhiteElo "2147"]
[BlackElo "2043"]
[Result "0-1"]
[Round "04"]
[TimeControl "180+2"]
[Date "2023.04.11"]
[WhiteClock "0:00:02"]
[BlackClock "0:00:13"]

1. e4 {[%clk 0:03:00]}  d6 {[%clk 0:02:56]} 2. d4 {[%clk 0:02:55]}  Nf6 {[%clk 0:02:56]} 3. Nc3 {[%clk 0:02:55]}  g6 {[%clk 0:02:56]} 4. g3 {[%clk 0:02:55]}  c6 {[%clk 0:02:56]} 5. a4 {[%clk 0:02:53]}  Bg7 {[%clk 0:02:56]} 6. Bg2 {[%clk 0:02:53]}  O-O {[%clk 0:02:56]} 7. h3 {[%clk 0:02:53]}  a6 {[%clk 0:02:55]} 8. Nge2 {[%clk 0:02:52]}  Nbd7 {[%clk 0:02:51]} 9. O-O {[%clk 0:02:52]}  e5 {[%clk 0:02:50]} 10. Be3 {[%clk 0:02:51]}  Qe7 {[%clk 0:02:50]} 11. Kh2 {[%clk 0:02:47]}  Rb8 {[%clk 0:02:43]} 12. a5 {[%clk 0:02:44]}  b5 {[%clk 0:02:42]} 13. axb6 {[%clk 0:02:43]}  Nxb6 {[%clk 0:02:43]} 14. b3 {[%clk 0:02:35]}  exd4 {[%clk 0:02:38]} 15. Bxd4 {[%clk 0:02:34]}  c5 {[%clk 0:02:38]} 16. Be3 {[%clk 0:02:32]}  Bb7 {[%clk 0:02:37]} 17. f3 {[%clk 0:02:15]}  d5 {[%clk 0:02:36]} 18. e5 {[%clk 0:01:52]}  Qxe5 {[%clk 0:02:34]} 19. Bxc5 {[%clk 0:01:53]}  Nbd7 {[%clk 0:01:37]} 20. Bxf8 {[%clk 0:01:50]}  Bxf8 {[%clk 0:01:38]} 21. Nd4 {[%clk 0:01:43]}  Bc5 {[%clk 0:01:30]} 22. Nce2 {[%clk 0:01:39]}  Re8 {[%clk 0:01:28]} 23. c3 {[%clk 0:01:34]}  Qc7 {[%clk 0:01:27]} 24. Nf4 {[%clk 0:01:20]}  Bd6 {[%clk 0:01:25]} 25. Qd2 {[%clk 0:01:11]}  Rc8 {[%clk 0:01:09]} 26. Rac1 {[%clk 0:01:05]}  Ne5 {[%clk 0:00:52]} 27. Nfe2 {[%clk 0:00:57]}  Nh5 {[%clk 0:00:47]} 28. Kh1 {[%clk 0:00:54]}  Nd7 {[%clk 0:00:39]} 29. f4 {[%clk 0:00:51]}  Nc5 {[%clk 0:00:29]} 30. g4 {[%clk 0:00:47]}  Nf6 {[%clk 0:00:27]} 31. f5 {[%clk 0:00:41]}  Nce4 {[%clk 0:00:26]} 32. Qg5 {[%clk 0:00:37]}  Nxg5 {[%clk 0:00:23]} 33. Rcd1 {[%clk 0:00:26]}  Nfe4 {[%clk 0:00:21]} 34. fxg6 {[%clk 0:00:21]}  hxg6 {[%clk 0:00:20]} 35. h4 {[%clk 0:00:19]}  Qe7 {[%clk 0:00:17]} 36. hxg5 {[%clk 0:00:16]}  Qxg5 {[%clk 0:00:16]} 37. Nf3 {[%clk 0:00:09]}  Qh6+ {[%clk 0:00:15]} 38. Kg1 {[%clk 0:00:09]}  Qe3+ {[%clk 0:00:15]} 39. Kh1 {[%clk 0:00:06]}  Kg7 {[%clk 0:00:16]} 40. Neg1 {[%clk 0:00:02]}  Ng3+ {[%clk 0:00:13]} 0-1


[Site "https://www.chess.com"]

[Event "Titled Tuesday Blitz April 11 Early 2023"]
[White "Munro, Allan"]
[Black "Eggleston, Thomas A"]
[WhiteFideId "7700245"]
[BlackFideId "412139"]
[WhiteElo "2084"]
[BlackElo "2155"]
[Result "0-1"]
[Round "04"]
[TimeControl "180+2"]
[Date "2023.04.11"]
[WhiteClock "0:00:02"]
[BlackClock "0:00:54"]

1. d4 {[%clk 0:03:00]}  e6 {[%clk 0:02:44]} 2. e4 {[%clk 0:02:56]}  d5 {[%clk 0:02:19]} 3. Bd3 {[%clk 0:02:55]}  c5 {[%clk 0:02:08]} 4. exd5 {[%clk 0:02:55]}  exd5 {[%clk 0:02:08]} 5. Nf3 {[%clk 0:02:54]}  Nf6 {[%clk 0:02:07]} 6. O-O {[%clk 0:02:54]}  cxd4 {[%clk 0:02:05]} 7. Nxd4 {[%clk 0:02:41]}  Be7 {[%clk 0:02:02]} 8. Nd2 {[%clk 0:02:39]}  O-O {[%clk 0:02:01]} 9. c3 {[%clk 0:02:29]}  Nc6 {[%clk 0:02:02]} 10. N2b3 {[%clk 0:02:28]}  Bg4 {[%clk 0:02:01]} 11. f3 {[%clk 0:02:23]}  Bh5 {[%clk 0:02:01]} 12. Be3 {[%clk 0:02:22]}  Re8 {[%clk 0:01:56]} 13. Nf5 {[%clk 0:01:51]}  Bf8 {[%clk 0:01:52]} 14. Bf2 {[%clk 0:01:50]}  Ne5 {[%clk 0:01:48]} 15. Bc2 {[%clk 0:01:49]}  Bg6 {[%clk 0:01:48]} 16. Nbd4 {[%clk 0:01:25]}  Nc4 {[%clk 0:01:46]} 17. b3 {[%clk 0:01:13]}  Ne5 {[%clk 0:01:40]} 18. Rc1 {[%clk 0:01:06]}  Rc8 {[%clk 0:01:39]} 19. Bb1 {[%clk 0:01:07]}  a6 {[%clk 0:01:36]} 20. Re1 {[%clk 0:01:07]}  Bxf5 {[%clk 0:01:30]} 21. Bxf5 {[%clk 0:00:57]}  Rc7 {[%clk 0:01:30]} 22. Bh4 {[%clk 0:00:35]}  g6 {[%clk 0:01:29]} 23. Bd3 {[%clk 0:00:23]}  Bg7 {[%clk 0:01:26]} 24. Bf1 {[%clk 0:00:22]}  Rc8 {[%clk 0:01:24]} 25. Qd2 {[%clk 0:00:22]}  Qb6 {[%clk 0:01:22]} 26. Qf4 {[%clk 0:00:20]}  Nh5 {[%clk 0:01:18]} 27. Qd2 {[%clk 0:00:18]}  Nc6 {[%clk 0:01:15]} 28. Bf2 {[%clk 0:00:11]}  Qc7 {[%clk 0:01:10]} 29. Kh1 {[%clk 0:00:11]}  Be5 {[%clk 0:01:09]} 30. Bg1 {[%clk 0:00:10]}  Bf4 {[%clk 0:01:08]} 31. Qd1 {[%clk 0:00:02]}  Bxc1 {[%clk 0:01:07]} 32. Qxc1 {[%clk 0:00:03]}  Rxe1 {[%clk 0:01:06]} 33. Qxe1 {[%clk 0:00:03]}  Qe5 {[%clk 0:01:04]} 34. Qh4 {[%clk 0:00:03]}  Qf6 {[%clk 0:01:01]} 35. Qh3 {[%clk 0:00:02]}  Re8 {[%clk 0:01:01]} 36. Bf2 {[%clk 0:00:02]}  Nf4 {[%clk 0:01:00]} 37. Qg3 {[%clk 0:00:02]}  Nh5 {[%clk 0:00:58]} 38. Qh3 {[%clk 0:00:03]}  Ne5 {[%clk 0:00:57]} 39. Kg1 {[%clk 0:00:02]}  Qf4 {[%clk 0:00:54]} 0-1


[Site "https://www.chess.com"]

[Event "Titled Tuesday Blitz April 11 Early 2023"]
[White "Alahakoon, Isuru"]
[Black "Winkels, Marcel"]
[WhiteFideId "9900993"]
[BlackFideId "1003887"]
[WhiteElo "1995"]
[BlackElo "1900"]
[Result "1-0"]
[Round "04"]
[TimeControl "180+2"]
[Date "2023.04.11"]
[WhiteClock "0:01:17"]
[BlackClock "0:00:43"]

1. Nf3 {[%clk 0:03:00]}  c5 {[%clk 0:02:55]} 2. c3 {[%clk 0:03:00]}  g6 {[%clk 0:02:52]} 3. d4 {[%clk 0:02:59]}  cxd4 {[%clk 0:02:53]} 4. Qxd4 {[%clk 0:02:53]}  Nf6 {[%clk 0:02:51]} 5. e4 {[%clk 0:02:52]}  d6 {[%clk 0:02:50]} 6. e5 {[%clk 0:02:50]}  dxe5 {[%clk 0:02:43]} 7. Qxd8+ {[%clk 0:02:49]}  Kxd8 {[%clk 0:02:44]} 8. Nxe5 {[%clk 0:02:50]}  Ke8 {[%clk 0:02:44]} 9. Bc4 {[%clk 0:02:50]}  e6 {[%clk 0:02:40]} 10. O-O {[%clk 0:02:47]}  Bd6 {[%clk 0:02:35]} 11. Re1 {[%clk 0:02:45]}  Nbd7 {[%clk 0:02:30]} 12. Nxf7 {[%clk 0:02:28]}  Kxf7 {[%clk 0:02:30]} 13. Rxe6 {[%clk 0:02:28]}  Ne5 {[%clk 0:02:29]} 14. Rxe5+ {[%clk 0:02:27]}  Kg7 {[%clk 0:02:27]} 15. Re1 {[%clk 0:02:23]}  Bf5 {[%clk 0:02:16]} 16. Nd2 {[%clk 0:02:17]}  Rhe8 {[%clk 0:02:13]} 17. Rxe8 {[%clk 0:02:14]}  Rxe8 {[%clk 0:02:13]} 18. Nf3 {[%clk 0:02:15]}  Bg4 {[%clk 0:02:06]} 19. Be3 {[%clk 0:02:12]}  Bxf3 {[%clk 0:01:36]} 20. gxf3 {[%clk 0:02:13]}  b6 {[%clk 0:01:33]} 21. Rd1 {[%clk 0:02:12]}  Be5 {[%clk 0:01:32]} 22. Kg2 {[%clk 0:01:58]}  a5 {[%clk 0:01:29]} 23. Bxb6 {[%clk 0:01:40]}  Rb8 {[%clk 0:01:25]} 24. Bd4 {[%clk 0:01:31]}  Bxd4 {[%clk 0:01:23]} 25. Rxd4 {[%clk 0:01:32]}  Rxb2 {[%clk 0:01:22]} 26. Bb3 {[%clk 0:01:25]}  Nh5 {[%clk 0:01:13]} 27. Ra4 {[%clk 0:01:24]}  Nf4+ {[%clk 0:01:11]} 28. Rxf4 {[%clk 0:01:23]}  g5 {[%clk 0:00:57]} 29. Ra4 {[%clk 0:01:23]}  Kf6 {[%clk 0:00:55]} 30. Rxa5 {[%clk 0:01:23]}  h5 {[%clk 0:00:52]} 31. c4 {[%clk 0:01:22]}  h4 {[%clk 0:00:51]} 32. c5 {[%clk 0:01:21]}  h3+ {[%clk 0:00:51]} 33. Kxh3 {[%clk 0:01:20]}  Rxf2 {[%clk 0:00:49]} 34. Kg3 {[%clk 0:01:20]}  Rd2 {[%clk 0:00:49]} 35. c6 {[%clk 0:01:20]}  Ke7 {[%clk 0:00:43]} 36. Rd5 {[%clk 0:01:17]} 1-0


[Site "https://www.chess.com"]

[Event "Titled Tuesday Blitz April 11 Early 2023"]
[White "Makhmudov, Shukhrat"]
[Black "Hartikainen, Jarmo"]
[WhiteFideId "14200775"]
[BlackFideId "503134"]
[WhiteElo "2135"]
[BlackElo "2062"]
[Result "1-0"]
[Round "04"]
[TimeControl "180+2"]
[Date "2023.04.11"]
[WhiteClock "0:00:28"]
[BlackClock "0:00:06"]

1. e4 {[%clk 0:02:38]}  c5 {[%clk 0:02:58]} 2. Nf3 {[%clk 0:02:37]}  Nc6 {[%clk 0:02:58]} 3. d4 {[%clk 0:02:38]}  cxd4 {[%clk 0:02:59]} 4. Nxd4 {[%clk 0:02:38]}  Nf6 {[%clk 0:02:59]} 5. Nc3 {[%clk 0:02:38]}  d6 {[%clk 0:02:59]} 6. Nxc6 {[%clk 0:02:38]}  bxc6 {[%clk 0:02:59]} 7. e5 {[%clk 0:02:37]}  dxe5 {[%clk 0:02:58]} 8. Qxd8+ {[%clk 0:02:36]}  Kxd8 {[%clk 0:02:59]} 9. Bc4 {[%clk 0:02:37]}  e6 {[%clk 0:02:50]} 10. Bg5 {[%clk 0:02:37]}  Be7 {[%clk 0:02:41]} 11. O-O-O+ {[%clk 0:02:36]}  Kc7 {[%clk 0:02:39]} 12. f3 {[%clk 0:02:30]}  a5 {[%clk 0:02:30]} 13. Na4 {[%clk 0:02:25]}  Ba6 {[%clk 0:02:16]} 14. Bxa6 {[%clk 0:02:24]}  Rxa6 {[%clk 0:02:16]} 15. Rhe1 {[%clk 0:02:24]}  Raa8 {[%clk 0:01:48]} 16. Rxe5 {[%clk 0:02:17]}  Nd7 {[%clk 0:01:35]} 17. Bxe7 {[%clk 0:02:15]}  Nxe5 {[%clk 0:01:27]} 18. Bd6+ {[%clk 0:02:14]}  Kb7 {[%clk 0:01:23]} 19. Bxe5 {[%clk 0:02:14]}  f6 {[%clk 0:01:19]} 20. Rd7+ {[%clk 0:02:14]}  Ka6 {[%clk 0:01:08]} 21. Bg3 {[%clk 0:01:42]}  Ra7 {[%clk 0:01:00]} 22. Rd6 {[%clk 0:01:27]}  e5 {[%clk 0:00:28]} 23. c4 {[%clk 0:00:58]}  Rc7 {[%clk 0:00:23]} 24. Nc5+ {[%clk 0:00:53]}  Ka7 {[%clk 0:00:22]} 25. Ne6 {[%clk 0:00:49]}  Rcc8 {[%clk 0:00:18]} 26. Rd7+ {[%clk 0:00:49]}  Kb8 {[%clk 0:00:14]} 27. Rxg7 {[%clk 0:00:40]}  h5 {[%clk 0:00:14]} 28. Bf2 {[%clk 0:00:34]}  h4 {[%clk 0:00:09]} 29. Nc5 {[%clk 0:00:28]}  h3 {[%clk 0:00:07]} 30. Na6+ {[%clk 0:00:28]}  Ka8 {[%clk 0:00:06]} 31. Ra7# {[%clk 0:00:28]} 1-0


[Site "https://www.chess.com"]

[Event "Titled Tuesday Blitz April 11 Early 2023"]
[White "Saiz Rodriguez, Daniel Evelio"]
[Black "NtcPou"]
[WhiteFideId "3523420"]
[WhiteElo "2208"]
[BlackElo "1973"]
[Result "1-0"]
[Round "04"]
[TimeControl "180+2"]
[Date "2023.04.11"]
[WhiteClock "0:00:22"]
[BlackClock "0:01:29"]

1. e4 {[%clk 0:02:39]}  c5 {[%clk 0:02:57]} 2. Nf3 {[%clk 0:02:39]}  e6 {[%clk 0:02:57]} 3. d4 {[%clk 0:02:38]}  cxd4 {[%clk 0:02:57]} 4. Nxd4 {[%clk 0:02:39]}  Nf6 {[%clk 0:02:57]} 5. Nc3 {[%clk 0:02:39]}  Nc6 {[%clk 0:02:58]} 6. Ndb5 {[%clk 0:02:33]}  Bb4 {[%clk 0:02:57]} 7. Nd6+ {[%clk 0:02:31]}  Ke7 {[%clk 0:02:57]} 8. Nxc8+ {[%clk 0:02:27]}  Rxc8 {[%clk 0:02:58]} 9. Bd3 {[%clk 0:02:25]}  d5 {[%clk 0:02:56]} 10. exd5 {[%clk 0:02:21]}  Nxd5 {[%clk 0:02:55]} 11. Bd2 {[%clk 0:02:20]}  Nxc3 {[%clk 0:02:53]} 12. bxc3 {[%clk 0:02:21]}  Bd6 {[%clk 0:02:49]} 13. O-O {[%clk 0:01:59]}  Be5 {[%clk 0:02:48]} 14. Rb1 {[%clk 0:01:49]}  Qd7 {[%clk 0:02:42]} 15. Qf3 {[%clk 0:01:31]}  Bf6 {[%clk 0:02:39]} 16. Rfd1 {[%clk 0:01:19]}  h6 {[%clk 0:02:35]} 17. Be3 {[%clk 0:01:16]}  Qc7 {[%clk 0:02:17]} 18. Bc5+ {[%clk 0:01:14]}  Ke8 {[%clk 0:02:13]} 19. Bb5 {[%clk 0:00:54]}  a6 {[%clk 0:02:08]} 20. Bd6 {[%clk 0:00:44]}  Qb6 {[%clk 0:02:04]} 21. Bxc6+ {[%clk 0:00:42]}  Qxc6 {[%clk 0:02:04]} 22. Qxc6+ {[%clk 0:00:29]}  Rxc6 {[%clk 0:01:49]} 23. Rxb7 {[%clk 0:00:29]}  Rxc3 {[%clk 0:01:49]} 24. Rb8+ {[%clk 0:00:27]}  Bd8 {[%clk 0:01:49]} 25. Be5 {[%clk 0:00:22]}  Rc5 {[%clk 0:01:29]} 26. Rbxd8+ {[%clk 0:00:21]}  Ke7 {[%clk 0:01:29]} 27. R1d7# {[%clk 0:00:22]} 1-0


[Site "https://www.chess.com"]

[Event "Titled Tuesday Blitz April 11 Early 2023"]
[White "Kramnik, Vladimir"]
[Black "Le, Tuan Minh"]
[WhiteFideId "4101588"]
[BlackFideId "12401153"]
[WhiteElo "2712"]
[BlackElo "2566"]
[Result "0-1"]
[Round "05"]
[TimeControl "180+2"]
[Date "2023.04.11"]
[WhiteClock "0:00:04"]
[BlackClock "0:00:07"]

1. e4 {[%clk 0:03:00]}  c5 {[%clk 0:02:50]} 2. Nf3 {[%clk 0:03:00]}  Nf6 {[%clk 0:02:48]} 3. e5 {[%clk 0:02:58]}  Nd5 {[%clk 0:02:48]} 4. g3 {[%clk 0:02:58]}  e6 {[%clk 0:02:44]} 5. Bg2 {[%clk 0:02:58]}  d6 {[%clk 0:02:41]} 6. O-O {[%clk 0:02:57]}  Nc6 {[%clk 0:02:41]} 7. exd6 {[%clk 0:02:56]}  Bxd6 {[%clk 0:02:42]} 8. d4 {[%clk 0:02:57]}  O-O {[%clk 0:02:42]} 9. c4 {[%clk 0:02:55]}  Nf6 {[%clk 0:02:40]} 10. Nc3 {[%clk 0:02:46]}  a6 {[%clk 0:02:18]} 11. dxc5 {[%clk 0:02:39]}  Bxc5 {[%clk 0:02:18]} 12. Qxd8 {[%clk 0:02:36]}  Rxd8 {[%clk 0:02:19]} 13. Bf4 {[%clk 0:02:35]}  Bd7 {[%clk 0:02:14]} 14. Rfd1 {[%clk 0:02:31]}  Be8 {[%clk 0:02:13]} 15. a3 {[%clk 0:02:28]}  a5 {[%clk 0:02:08]} 16. h3 {[%clk 0:02:24]}  h6 {[%clk 0:02:04]} 17. g4 {[%clk 0:02:18]}  Kf8 {[%clk 0:02:01]} 18. Na4 {[%clk 0:02:10]}  Ba7 {[%clk 0:01:45]} 19. Bc7 {[%clk 0:02:10]}  Rxd1+ {[%clk 0:01:10]} 20. Rxd1 {[%clk 0:02:08]}  Rc8 {[%clk 0:01:11]} 21. Bb6 {[%clk 0:02:03]}  Ne5 {[%clk 0:00:56]} 22. Nxe5 {[%clk 0:01:39]}  Bxa4 {[%clk 0:00:55]} 23. Bxa7 {[%clk 0:01:21]}  Bxd1 {[%clk 0:00:55]} 24. b4 {[%clk 0:01:21]}  axb4 {[%clk 0:00:46]} 25. axb4 {[%clk 0:01:21]}  Be2 {[%clk 0:00:18]} 26. Bxb7 {[%clk 0:01:17]}  Rc7 {[%clk 0:00:16]} 27. Bc5+ {[%clk 0:01:17]}  Kg8 {[%clk 0:00:17]} 28. Ba6 {[%clk 0:00:52]}  Ne4 {[%clk 0:00:17]} 29. Bb6 {[%clk 0:00:50]}  Re7 {[%clk 0:00:14]} 30. b5 {[%clk 0:00:44]}  f6 {[%clk 0:00:12]} 31. Nc6 {[%clk 0:00:35]}  Rd7 {[%clk 0:00:12]} 32. Nd4 {[%clk 0:00:17]}  Bxc4 {[%clk 0:00:12]} 33. Bc8 {[%clk 0:00:17]}  Re7 {[%clk 0:00:08]} 34. Ba5 {[%clk 0:00:12]}  Ra7 {[%clk 0:00:06]} 35. Bb4 {[%clk 0:00:09]}  Ra1+ {[%clk 0:00:06]} 36. Kh2 {[%clk 0:00:09]}  Rb1 {[%clk 0:00:07]} 37. Ba5 {[%clk 0:00:06]}  Kf7 {[%clk 0:00:07]} 38. b6 {[%clk 0:00:05]}  Bd5 {[%clk 0:00:07]} 39. f3 {[%clk 0:00:04]}  Nd6 {[%clk 0:00:07]} 40. b7 {[%clk 0:00:04]}  Nxb7 {[%clk 0:00:06]} 41. Bd7 {[%clk 0:00:04]}  Nxa5 {[%clk 0:00:07]} 0-1


[Site "https://www.chess.com"]

[Event "Titled Tuesday Blitz April 11 Early 2023"]
[White "Indjic, Aleksandar"]
[Black "Hakobyan, Aram"]
[WhiteFideId "911925"]
[BlackFideId "13306677"]
[WhiteElo "2614"]
[BlackElo "2584"]
[Result "0-1"]
[Round "05"]
[TimeControl "180+2"]
[Date "2023.04.11"]
[WhiteClock "0:01:49"]
[BlackClock "0:00:29"]

1. d4 {[%clk 0:03:00]}  Nf6 {[%clk 0:03:00]} 2. Nf3 {[%clk 0:03:01]}  e6 {[%clk 0:02:59]} 3. Bg5 {[%clk 0:03:01]}  h6 {[%clk 0:02:59]} 4. Bh4 {[%clk 0:03:01]}  d5 {[%clk 0:02:58]} 5. Nbd2 {[%clk 0:03:00]}  Be7 {[%clk 0:02:58]} 6. c3 {[%clk 0:03:00]}  Nbd7 {[%clk 0:02:57]} 7. e3 {[%clk 0:03:00]}  b6 {[%clk 0:02:57]} 8. Bd3 {[%clk 0:03:00]}  Bb7 {[%clk 0:02:57]} 9. Qb1 {[%clk 0:02:59]}  c5 {[%clk 0:02:56]} 10. a4 {[%clk 0:02:59]}  a6 {[%clk 0:02:52]} 11. Bg3 {[%clk 0:02:57]}  O-O {[%clk 0:02:49]} 12. h3 {[%clk 0:02:55]}  c4 {[%clk 0:02:30]} 13. Bc2 {[%clk 0:02:55]}  b5 {[%clk 0:02:30]} 14. e4 {[%clk 0:02:56]}  dxe4 {[%clk 0:02:30]} 15. Nxe4 {[%clk 0:02:55]}  Nxe4 {[%clk 0:02:30]} 16. Bxe4 {[%clk 0:02:55]}  Bxe4 {[%clk 0:02:31]} 17. Qxe4 {[%clk 0:02:55]}  Nf6 {[%clk 0:02:32]} 18. Qc2 {[%clk 0:02:54]}  Nd5 {[%clk 0:02:27]} 19. O-O {[%clk 0:02:54]}  Bd6 {[%clk 0:02:24]} 20. Bxd6 {[%clk 0:02:52]}  Qxd6 {[%clk 0:02:24]} 21. Ne5 {[%clk 0:02:52]}  Rfc8 {[%clk 0:02:13]} 22. Qe2 {[%clk 0:02:36]}  b4 {[%clk 0:02:07]} 23. Rac1 {[%clk 0:02:28]}  bxc3 {[%clk 0:02:05]} 24. bxc3 {[%clk 0:02:29]}  Qa3 {[%clk 0:01:44]} 25. f4 {[%clk 0:02:08]}  Rab8 {[%clk 0:01:25]} 26. f5 {[%clk 0:02:02]}  exf5 {[%clk 0:01:25]} 27. Rxf5 {[%clk 0:02:01]}  Qxc1+ {[%clk 0:01:24]} 28. Kh2 {[%clk 0:02:00]}  Rc7 {[%clk 0:01:03]} 29. Qf3 {[%clk 0:01:54]}  Nf6 {[%clk 0:00:57]} 30. h4 {[%clk 0:01:49]}  Rb1 {[%clk 0:00:52]} 31. Rxf6 {[%clk 0:01:49]}  gxf6 {[%clk 0:00:39]} 32. Qf5 {[%clk 0:01:49]}  Qg1+ {[%clk 0:00:34]} 33. Kh3 {[%clk 0:01:49]}  fxe5 {[%clk 0:00:29]} 0-1


[Site "https://www.chess.com"]